fUSD/lending_fUSD_20260305
["ID","MTS","AMOUNT","RATE_DAILY","PERIOD"]
[407702286,1772692236690,-351.0,0.00046112,120]
[407702287,1772692236702,-4657.67021031,0.00046121,120]
[407702288,1772692236713,-160.0,0.00046135,16]
[407702289,1772692236722,-1000.0,0.00046144,30]
[407702290,1772692236731,-351.0,0.00046156,2]
[407702291,1772692236743,-872.0,0.00046184,16]
[407702292,1772692236752,-160.11893904,0.00046225,2]
[407702293,1772692236762,-939.0,0.00046329,2]
[407702294,1772692236772,-351.0,0.00046347,30]
[407702295,1772692236781,-163.0,0.00046351,16]
[407702296,1772692236791,-921.0,0.00046388,2]
[407702297,1772692236802,-1212.0,0.00046388,2]
[407702298,1772692236811,-1341.0,0.00046388,2]
[407702299,1772692236821,-1041.0,0.00046388,2]
[407702300,1772692236833,-150.9,0.0004639,2]
[407702301,1772692236842,-17903.5744914,0.000464,120]
[407702302,1772692236852,-2803.0,0.0004641,16]
[407702303,1772692236863,-152.0,0.00046413,4]
[407702304,1772692236872,-1000.0,0.00046418,30]
[407702305,1772692236883,-2000.0,0.00046455,4]
[407702306,1772692236895,-890.5889,0.00046455,4]
[407702307,1772692236904,-5000.0,0.00046475,120]
[407702308,1772692236914,-150.9,0.00046565,2]
[407702309,1772692236923,-3000.0,0.00046574,2]
[407702310,1772692236933,-500.0,0.00046574,30]
[407702311,1772692236943,-500.0,0.00046574,10]
[407702312,1772692236952,-630.81055911,0.00046574,120]
[407702313,1772692236961,-5231.9961895,0.00046575,2]
[407702314,1772692236972,-578.59342582,0.00046575,120]
[407702315,1772692236982,-500.0,0.00046575,2]
[407702316,1772692236991,-500.0,0.00046575,2]
[407702317,1772692237001,-500.0,0.00046575,120]
[407702318,1772692237010,-500.0,0.00046575,120]
[407702319,1772692237019,-500.0,0.00046575,7]
[407702320,1772692237028,-500.0,0.00046575,7]
[407702321,1772692237038,-231.19680844,0.00046575,2]
[407702322,1772692237047,-406.55350747,0.00046575,2]
[407702323,1772692237056,-500.0,0.00046575,120]
[407702324,1772692237065,-500.0,0.00046575,120]
[407702325,1772692237075,-500.0,0.00046575,120]
[407702326,1772692237084,-300.0,0.00046575,2]
[407702327,1772692237094,-300.0,0.00046575,2]
[407702328,1772692237104,-500.0,0.00046575,2]
[407702329,1772692237113,-500.0,0.00046575,2]
[407702330,1772692237123,-500.0,0.00046575,2]
[407702331,1772692237132,-500.0,0.00046575,2]
[407702332,1772692237142,-500.0,0.00046575,2]
[407702333,1772692237151,-500.0,0.00046575,2]
[407702334,1772692237161,-500.0,0.00046575,2]
[407702335,1772692237170,-500.0,0.00046575,2]
[407702336,1772692237180,-613.01973523,0.00046575,2]
[407702337,1772692237190,-1258.22,0.00046575,2]
[407702338,1772692237199,-1258.22,0.00046575,2]
[407702339,1772692237209,-1077.41,0.00046575,2]
[407702340,1772692237218,-1077.41,0.00046575,2]
[407702341,1772692237227,-1371.81,0.00046575,2]
[407702342,1772692237237,-1371.81,0.00046575,2]
[407702343,1772692237247,-500.0,0.00046575,2]
[407702344,1772692237256,-500.0,0.00046575,2]
[407702345,1772692237265,-620.5002997,0.00046575,2]
[407702346,1772692237275,-500.0,0.00046575,120]
[407702347,1772692237284,-500.0,0.00046575,120]
[407702348,1772692237293,-512.12772749,0.00046575,120]
[407702349,1772692237303,-1515.23,0.00046575,15]
[407702350,1772692237312,-1515.23,0.00046575,15]
[407702351,1772692237321,-500.0,0.00046575,120]
[407702352,1772692237331,-475.28783387,0.00046575,120]
[407702353,1772692237340,-1559.83,0.00046575,2]
[407702354,1772692237350,-1559.83,0.00046575,2]
[407702355,1772692237359,-500.0,0.00046575,2]
[407702356,1772692237368,-500.0,0.00046575,2]
[407702357,1772692237378,-500.0,0.00046575,2]
[407702358,1772692237387,-500.0,0.00046575,2]
[407702359,1772692237397,-500.0,0.00046575,120]
[407702360,1772692237406,-500.0,0.00046575,120]
[407702361,1772692237416,-300.0,0.00046575,2]
[407702362,1772692237425,-300.0,0.00046575,2]
[407702363,1772692237435,-500.0,0.00046575,120]
[407702364,1772692237444,-500.0,0.00046575,120]
[407702365,1772692237453,-528.14585398,0.00046575,2]
[407702366,1772692237463,-500.0,0.00046575,7]
[407702367,1772692237472,-500.0,0.00046575,7]
[407702368,1772692237482,-500.0,0.00046575,120]
[407702369,1772692237491,-500.0,0.00046575,120]
[407702370,1772692237501,-687.78,0.00046575,2]
[407702371,1772692237511,-687.78,0.00046575,2]
[407702372,1772692237520,-509.62310143,0.00046575,2]
[407702373,1772692237530,-500.0,0.00046575,2]
[407702374,1772692237541,-500.0,0.00046575,2]
[407702375,1772692237550,-500.0,0.00046575,2]
[407702376,1772692237562,-500.0,0.00046575,2]
[407702377,1772692237572,-500.0,0.00046575,2]
[407702378,1772692237582,-500.0,0.00046575,2]
[407702379,1772692237592,-150.0,0.000466,80]
[407702380,1772692237602,-1500.0,0.000466,2]
[407702381,1772692237611,-429.36192849,0.00046691,3]
[407702382,1772692237621,-1000.0,0.00046692,30]
[407702383,1772692237631,-478.95,0.000467,14]
[407702384,1772692237640,-165.33,0.000467,14]
[407702385,1772692237651,-1559.83,0.00046701,2]
[407702386,1772692237661,-500.0,0.00046701,120]
[407702387,1772692237673,-687.78,0.00046701,2]
[407702388,1772692237683,-500.0,0.00046701,2]
[407702389,1772692237694,-359.0,0.00046701,2]
[407702390,1772692237705,-500.0,0.00046701,2]
[407702391,1772692237716,-19521.35531139,0.00046702,20]
[407702392,1772692237725,-200.0,0.00046702,25]
[407702393,1772692237736,-245.4,0.00046702,25]
[407702394,1772692237748,-200.0,0.00046702,25]
[407702395,1772692237757,-302.2,0.00046702,25]
[407702397,1772692237767,-1999.8328806,0.00046702,2]
[407702399,1772692237779,-500.0,0.00046702,120]
[407702400,1772692237789,-5000.0,0.00046702,120]
[407702402,1772692237800,-4000.0,0.00046702,120]
[407702403,1772692237810,-5000.00000045,0.00046702,120]
[407702404,1772692237819,-500.0,0.00046702,120]
[407702405,1772692237828,-1308.846437,0.00046702,120]
[407702407,1772692237839,-1308.846437,0.00046702,120]
[407702408,1772692237849,-1308.846437,0.00046702,120]
[407702409,1772692237860,-1308.846437,0.00046702,120]
[407702410,1772692237870,-1308.846437,0.00046702,120]
[407702411,1772692237879,-5000.0,0.00046702,30]
[407702412,1772692237890,-5000.0,0.00046702,30]
[407702413,1772692237904,-5000.0,0.00046702,30]
[407702414,1772692237914,-155.615,0.00046702,2]
[407702415,1772692237924,-5000.0,0.00046702,30]
[407702416,1772692237935,-5000.0,0.00046702,30]
[407702417,1772692237944,-5000.0,0.00046702,120]
[407702418,1772692237953,-5000.0,0.00046702,120]
[407702419,1772692237962,-5000.0,0.00046702,120]
[407702420,1772692237973,-5000.0,0.00046702,120]
[407702421,1772692237982,-5000.0,0.00046702,120]
[407702422,1772692237992,-53893.38658573,0.00046702,120]
[407702423,1772692238001,-1308.846437,0.00046702,120]
[407702424,1772692238011,-1308.846437,0.00046702,120]
[407702425,1772692238020,-1308.846437,0.00046702,120]
[407702426,1772692238030,-1308.846437,0.00046702,120]
[407702427,1772692238039,-1308.068504,0.00046702,120]
[407702428,1772692238048,-168.83959475,0.00046702,30]
[407702429,1772692238059,-160.0,0.00046725,16]
[407702430,1772692238069,-1200.0,0.000468,17]
[407702431,1772692238078,-200.0,0.000468,120]
[407702432,1772692238087,-939.0,0.00046893,7]
[407702433,1772692238097,-200.0,0.000469,17]
[407702434,1772692238106,-1000.0,0.00046965,30]
[407702435,1772692238116,-160.0,0.00047,30]
[407702436,1772692238125,-1000.0,0.00047239,30]
[407702437,1772692238134,-801.0,0.000473,30]
[407702438,1772692238143,-304.0,0.000473,30]
[407702439,1772692238153,-160.0,0.00047385,16]
[407702440,1772692238162,-351.0,0.00047504,2]
[407702441,1772692238171,-429.36192849,0.00047538,3]
[407702442,1772692238180,-858.72385698,0.00047539,3]
[407702443,1772692238189,-25000.0,0.0004754,15]
[407702444,1772692238199,-5759.84566924,0.00047541,15]
[407702445,1772692238208,-500.0,0.00047547,2]
[407702446,1772692238217,-500.0,0.00047547,120]
[407702447,1772692238226,-500.0,0.00047547,2]
[407702448,1772692238236,-500.0,0.00047547,2]
[407702449,1772692238245,-500.0,0.00047547,2]
[407702450,1772692238254,-300.0,0.00047547,2]
[407702451,1772692238263,-500.0,0.00047547,7]
[407702452,1772692238272,-500.0,0.00047548,2]
[407702453,1772692238281,-500.0,0.00047548,7]
[407702454,1772692238290,-500.0,0.00047548,120]
[407702455,1772692238300,-300.0,0.00047548,2]
[407702456,1772692238311,-1258.22,0.00047548,2]
[407702457,1772692238321,-1077.41,0.00047548,2]
[407702458,1772692238331,-1371.81,0.00047548,2]
[407702459,1772692238342,-500.0,0.00047548,30]
[407702460,1772692238353,-500.0,0.00047548,10]
[407702461,1772692238364,-1515.23,0.00047548,15]
[407702462,1772692238373,-500.0,0.00047548,120]
[407702463,1772692238383,-500.0,0.00047548,120]
[407702464,1772692238394,-687.78,0.00047548,2]
[407702465,1772692238404,-401.90077271,0.00047548,2]
[407702466,1772692238415,-500.0,0.00047548,2]
[407702467,1772692238426,-25000.0,0.00047549,15]
[407702468,1772692238435,-25000.0,0.00047549,15]
[407702469,1772692238444,-25000.0,0.00047549,15]
[407702470,1772692238454,-25000.0,0.00047549,15]
[407702471,1772692238464,-761.72907599,0.00047579,2]
[407702472,1772692238474,-150.0,0.000476,83]
[407702473,1772692238485,-2803.0,0.0004762,16]
[407702474,1772692238495,-160.0,0.00047685,16]
[407702475,1772692238507,-429.36192849,0.00047692,3]
[407702476,1772692238517,-351.0,0.00047697,7]
[407702477,1772692238527,-150.0,0.00047699,30]
[407702478,1772692238536,-174.0,0.00047699,30]
[407702479,1772692238547,-500.0,0.00047702,2]
[407702480,1772692238556,-500.0,0.00047702,2]
[407702481,1772692238565,-500.0,0.00047702,2]
[407702482,1772692238575,-500.0,0.00047702,2]
[407702483,1772692238585,-500.0,0.00047702,2]
[407702484,1772692238595,-500.0,0.00047702,2]
[407702485,1772692238604,-500.0,0.00047702,2]
[407702486,1772692238612,-500.0,0.00047702,2]
[407702487,1772692238621,-500.0,0.00047702,2]
[407702488,1772692238634,-500.0,0.00047702,2]
[407702489,1772692238644,-500.0,0.00047702,2]
[407702490,1772692238656,-500.0,0.00047702,2]
[407702491,1772692238667,-500.0,0.00047702,2]
[407702492,1772692238677,-500.0,0.00047702,2]
[407702493,1772692238688,-500.0,0.00047702,2]
[407702494,1772692238698,-500.0,0.00047702,2]
[407702495,1772692238708,-500.0,0.00047702,2]
[407702496,1772692238719,-500.0,0.00047702,2]
[407702497,1772692238729,-500.0,0.00047702,2]
[407702498,1772692238740,-500.0,0.00047702,2]
[407702499,1772692238751,-500.0,0.00047702,2]
[407702500,1772692238761,-500.0,0.00047702,2]
[407702501,1772692238771,-500.0,0.00047702,2]
[407702502,1772692238780,-500.0,0.00047702,2]
[407702503,1772692238790,-500.0,0.00047702,2]
[407702504,1772692238832,-500.0,0.00047702,2]
[407702505,1772692238842,-500.0,0.00047702,2]
[407702506,1772692238851,-500.0,0.00047702,2]
[407702507,1772692238862,-500.0,0.00047702,2]
[407702508,1772692238872,-500.0,0.00047702,2]
[407702509,1772692238881,-500.0,0.00047702,2]
[407702510,1772692238891,-500.0,0.00047702,2]
[407702511,1772692238904,-500.0,0.00047702,2]
[407702512,1772692238913,-500.0,0.00047702,2]
[407702513,1772692238922,-500.0,0.00047702,2]
[407702514,1772692238932,-500.0,0.00047702,2]
[407702515,1772692238943,-500.0,0.00047702,2]
[407702516,1772692238952,-500.0,0.00047702,2]
[407702517,1772692238961,-500.0,0.00047702,2]
[407702518,1772692238975,-500.0,0.00047702,2]
[407702519,1772692238984,-500.0,0.00047702,2]
[407702520,1772692238993,-500.0,0.00047702,2]
[407702521,1772692239002,-500.0,0.00047702,2]
[407702522,1772692239011,-500.0,0.00047702,2]
[407702523,1772692239020,-500.0,0.00047702,2]
[407702524,1772692239029,-500.0,0.00047702,2]
[407702525,1772692239039,-500.0,0.00047702,2]
[407702526,1772692239048,-500.0,0.00047702,2]
[407702527,1772692239058,-500.0,0.00047702,2]
[407702528,1772692239067,-500.0,0.00047702,2]
[407702529,1772692239077,-500.0,0.00047702,2]
[407702530,1772692239086,-500.0,0.00047702,2]
[407702531,1772692239096,-500.0,0.00047702,2]
[407702532,1772692239107,-500.0,0.00047702,2]
[407702533,1772692239116,-500.0,0.00047702,2]
[407702534,1772692239126,-500.0,0.00047702,2]
[407702535,1772692239136,-500.0,0.00047702,2]
[407702536,1772692239145,-500.0,0.00047702,2]
[407702537,1772692239154,-500.0,0.00047702,2]
[407702538,1772692239163,-500.0,0.00047702,2]
[407702539,1772692239173,-500.0,0.00047702,2]
[407702540,1772692239182,-500.0,0.00047702,2]
[407702541,1772692239191,-500.0,0.00047702,2]
[407702542,1772692239200,-500.0,0.00047702,2]
[407702543,1772692239209,-500.0,0.00047702,2]
[407702544,1772692239220,-500.0,0.00047702,2]
[407702545,1772692239229,-500.0,0.00047702,2]
[407702546,1772692239238,-500.0,0.00047702,2]
[407702547,1772692239247,-500.0,0.00047702,2]
[407702548,1772692239256,-500.0,0.00047702,2]
[407702549,1772692239266,-500.0,0.00047702,2]
[407702550,1772692239275,-500.0,0.00047702,2]
[407702551,1772692239285,-500.0,0.00047702,2]
[407702552,1772692239294,-500.0,0.00047702,2]
[407702553,1772692239304,-500.0,0.00047702,2]
[407702554,1772692239313,-524.0,0.00047702,2]
[407702555,1772692239322,-355.91,0.0004775,120]
[407702556,1772692239331,-3355.35694909,0.000478,30]
[407702557,1772692239341,-3587.52,0.000478,120]
[407702558,1772692239351,-153.67341002,0.00047817,15]
[407702559,1772692239360,-700.0,0.00047883,7]
[407702560,1772692239370,-165.33,0.000479,14]
[407702561,1772692239379,-478.95,0.00048,14]
[407702562,1772692239389,-2446.45696449,0.0004811,28]
[407702563,1772692239400,-2803.0,0.00048179,16]
[407702564,1772692239409,-180.0,0.00048378,7]
[407702565,1772692239419,-166.66,0.00048413,2]
[407702566,1772692239428,-254.0,0.000486,86]
[407702567,1772692239437,-257.0,0.00048799,7]
[407702568,1772692239446,-500.0,0.000488,120]
[407702569,1772692239457,-152.0,0.00048858,4]
[407702570,1772692239468,-429.36192849,0.00048891,4]
[407702571,1772692239478,-1559.83,0.000489,2]
[407702572,1772692239488,-500.0,0.000489,120]
[407702573,1772692239497,-186.90296888,0.000489,120]
[407702574,1772692239507,-25371.03251462,0.00048901,120]
[407702575,1772692239516,-542.5,0.0004898,120]
[407702576,1772692239526,-2034.323399,0.00049,60]
[407702577,1772692239535,-10695.0,0.00049,120]
[407702578,1772692239544,-194.51942139,0.00049,120]
[407702579,1772692239553,-199.0,0.00049,30]
[407702580,1772692239563,-394.0,0.00049,30]
[407702581,1772692239572,-1496.0,0.00049,120]
[407702582,1772692239582,-356.0,0.00049,30]
[407702583,1772692239591,-150.0,0.00049,10]
[407702584,1772692239600,-846.0,0.00049027,31]
[407702585,1772692239610,-662.13,0.00049041,30]
[407702586,1772692239620,-662.13,0.00049041,30]
[407702587,1772692239629,-846.0,0.00049069,31]
[407702588,1772692239639,-165.33,0.000491,14]
[407702589,1772692239647,-858.72385698,0.0004919,4]
[407702590,1772692239657,-687.78,0.00049199,2]
[407702591,1772692239667,-500.0,0.00049199,2]
[407702592,1772692239679,-159.0,0.000492,120]
[407702593,1772692239690,-100183.71826515,0.000492,60]
[407702594,1772692239700,-1228.21250779,0.00049214,35]
[407702595,1772692239709,-204.45795492,0.00049304,7]
[407702596,1772692239719,-1288.08578547,0.00049305,4]
[407702597,1772692239729,-500.0,0.00049314,2]
[407702598,1772692239738,-500.0,0.00049314,7]
[407702599,1772692239747,-500.0,0.00049314,120]
[407702600,1772692239756,-300.0,0.00049314,2]
[407702601,1772692239765,-1258.22,0.00049314,2]
[407702602,1772692239777,-1077.41,0.00049314,2]
[407702603,1772692239787,-1371.81,0.00049314,2]
[407702604,1772692239799,-500.4,0.00049314,2]
[407702605,1772692239810,-500.0,0.00049314,30]
[407702606,1772692239820,-500.0,0.00049314,120]
[407702607,1772692239830,-500.0,0.00049314,10]
[407702608,1772692239840,-500.0,0.00049314,2]
[407702609,1772692239849,-1515.23,0.00049314,15]
[407702610,1772692239858,-500.0,0.00049314,2]
[407702611,1772692239867,-500.0,0.00049314,2]
[407702612,1772692239876,-300.0,0.00049314,2]
[407702613,1772692239886,-500.0,0.00049314,120]
[407702614,1772692239897,-500.0,0.00049314,7]
[407702615,1772692239907,-500.0,0.00049314,120]
[407702616,1772692239916,-3777.55553294,0.00049315,54]
[407702617,1772692239925,-500.0,0.00049315,120]
[407702618,1772692239935,-18179.91226564,0.00049315,60]
[407702619,1772692239944,-560.0,0.00049315,120]
[407702620,1772692239954,-560.0,0.00049315,120]
[407702621,1772692239963,-560.0,0.00049315,120]
[407702622,1772692239974,-560.0,0.00049315,120]
[407702623,1772692239984,-560.0,0.00049315,120]
[407702624,1772692239993,-560.0,0.00049315,120]
[407702625,1772692240002,-560.0,0.00049315,120]
[407702626,1772692240012,-560.0,0.00049315,120]
[407702627,1772692240021,-560.0,0.00049315,120]
[407702628,1772692240030,-150.0,0.00049315,2]
[407702629,1772692240040,-560.0,0.00049315,120]
[407702630,1772692240050,-150.0,0.00049315,2]
[407702631,1772692240060,-560.0,0.00049315,120]
[407702632,1772692240069,-150.0,0.00049315,2]
[407702633,1772692240079,-150.0,0.00049315,2]
[407702634,1772692240088,-251.86707582,0.00049315,2]
[407702635,1772692240098,-560.0,0.00049315,120]
[407702636,1772692240107,-560.0,0.00049315,120]
[407702637,1772692240117,-560.0,0.00049315,120]
[407702638,1772692240127,-560.0,0.00049315,120]
[407702639,1772692240137,-560.0,0.00049315,120]
[407702640,1772692240146,-560.0,0.00049315,120]
[407702642,1772692240155,-560.0,0.00049315,120]
[407702644,1772692240166,-560.0,0.00049315,120]
[407702646,1772692240175,-560.0,0.00049315,120]
[407702647,1772692240184,-560.0,0.00049315,120]
[407702648,1772692240193,-560.0,0.00049315,120]
[407702649,1772692240203,-560.0,0.00049315,120]
[407702651,1772692240212,-578.70658717,0.00049315,120]
[407702653,1772692240221,-500.0,0.00049315,120]
[407702654,1772692240231,-500.0,0.00049315,120]
[407702655,1772692240240,-500.0,0.00049315,120]
[407702656,1772692240250,-500.0,0.00049315,120]
[407702657,1772692240259,-500.0,0.00049315,120]
[407702658,1772692240269,-502.67200278,0.00049315,120]
[407702659,1772692240278,-500.0,0.00049315,120]
[407702660,1772692240287,-500.0,0.00049315,120]
[407702661,1772692240297,-500.0,0.00049315,120]
[407702662,1772692240306,-500.0,0.00049315,120]
[407702663,1772692240315,-150.0,0.00049315,120]
[407702664,1772692240324,-150.0,0.00049315,120]
[407702665,1772692240333,-203.91112636,0.00049315,120]
[407702666,1772692240343,-150.0,0.00049315,120]
[407702667,1772692240352,-500.0,0.00049315,120]
[407702668,1772692240361,-173.18287324,0.00049315,120]
[407702669,1772692240370,-500.0,0.00049315,120]
[407702670,1772692240380,-500.0,0.00049315,120]
[407702671,1772692240389,-500.0,0.00049315,120]
[407702672,1772692240398,-500.0,0.00049315,120]
[407702673,1772692240407,-500.0,0.00049315,120]
[407702674,1772692240416,-500.0,0.00049315,120]
[407702675,1772692240425,-159.94559333,0.00049315,120]
[407702676,1772692240435,-500.0,0.00049315,120]
[407702677,1772692240445,-150.0,0.00049315,2]
[407702678,1772692240456,-500.0,0.00049315,120]
[407702679,1772692240465,-500.0,0.00049315,120]
[407702680,1772692240475,-500.0,0.00049315,120]
[407702681,1772692240484,-500.0,0.00049315,120]
[407702682,1772692240493,-500.0,0.00049315,120]
[407702683,1772692240503,-500.0,0.00049315,120]
[407702684,1772692240513,-500.0,0.00049315,120]
[407702685,1772692240523,-500.0,0.00049315,120]
[407702686,1772692240532,-500.0,0.00049315,120]
[407702687,1772692240542,-500.0,0.00049315,120]
[407702688,1772692240551,-500.0,0.00049315,120]
[407702689,1772692240560,-500.0,0.00049315,120]
[407702690,1772692240570,-500.0,0.00049315,120]
[407702691,1772692240579,-216.04924007,0.00049315,120]
[407702692,1772692240588,-500.0,0.00049315,120]
[407702693,1772692240597,-150.0,0.00049315,120]
[407702694,1772692240606,-150.0,0.00049315,120]
[407702695,1772692240616,-500.0,0.00049315,120]
[407702696,1772692240625,-150.0,0.00049315,120]
[407702697,1772692240634,-150.0,0.00049315,120]
[407702698,1772692240644,-500.0,0.00049315,120]
[407702699,1772692240653,-272.88390315,0.00049315,120]
[407702700,1772692240662,-205.97923411,0.00049315,120]
[407702701,1772692240671,-500.0,0.00049315,120]
[407702702,1772692240680,-848.0,0.00049315,2]
[407702703,1772692240690,-383.83803171,0.00049315,120]
[407702704,1772692240699,-848.0,0.00049315,2]
[407702705,1772692240709,-848.0,0.00049315,2]
[407702706,1772692240717,-848.0,0.00049315,2]
[407702707,1772692240727,-848.0,0.00049315,2]
[407702708,1772692240736,-500.0,0.00049315,120]
[407702709,1772692240745,-848.0,0.00049315,2]
[407702710,1772692240755,-500.0,0.00049315,120]
[407702711,1772692240764,-848.0,0.00049315,2]
[407702712,1772692240773,-500.0,0.00049315,120]
[407702713,1772692240783,-848.0,0.00049315,2]
[407702714,1772692240793,-500.0,0.00049315,120]
[407702715,1772692240803,-848.0,0.00049315,2]
[407702716,1772692240812,-500.0,0.00049315,120]
[407702717,1772692240821,-500.0,0.00049315,120]
[407702718,1772692240830,-500.0,0.00049315,120]
[407702719,1772692240840,-848.0,0.00049315,2]
[407702720,1772692240849,-500.0,0.00049315,120]
[407702721,1772692240860,-504.04064143,0.00049315,120]
[407702722,1772692240870,-500.0,0.00049315,120]
[407702723,1772692240879,-848.0,0.00049315,2]
[407702724,1772692240890,-500.0,0.00049315,120]
[407702725,1772692240904,-500.0,0.00049315,120]
[407702726,1772692240913,-848.0,0.00049315,2]
[407702727,1772692240923,-500.0,0.00049315,120]
[407702728,1772692240934,-500.0,0.00049315,120]
[407702729,1772692240944,-848.0,0.00049315,2]
[407702730,1772692240954,-500.0,0.00049315,120]
[407702731,1772692240963,-497.0,0.00049315,120]
[407702732,1772692240974,-500.0,0.00049315,120]
[407702733,1772692240984,-848.0,0.00049315,2]
[407702734,1772692240994,-300.0,0.00049315,120]
[407702735,1772692241005,-500.0,0.00049315,120]
[407702736,1772692241015,-848.0,0.00049315,2]
[407702737,1772692241024,-848.0,0.00049315,2]
[407702738,1772692241034,-497.0,0.00049315,120]
[407702739,1772692241044,-500.0,0.00049315,120]
[407702740,1772692241053,-500.0,0.00049315,120]
[407702741,1772692241063,-497.0,0.00049315,120]
[407702742,1772692241072,-395.59980908,0.00049315,120]
[407702743,1772692241082,-497.0,0.00049315,120]
[407702744,1772692241093,-848.0,0.00049315,2]
[407702745,1772692241103,-500.0,0.00049315,120]
[407702746,1772692241114,-497.0,0.00049315,120]
[407702747,1772692241124,-500.0,0.00049315,120]
[407702748,1772692241135,-497.0,0.00049315,120]
[407702749,1772692241145,-500.0,0.00049315,120]
[407702750,1772692241155,-500.0,0.00049315,120]
[407702751,1772692241166,-497.0,0.00049315,120]
[407702752,1772692241178,-500.0,0.00049315,120]
[407702753,1772692241188,-500.0,0.00049315,120]
[407702755,1772692241198,-497.0,0.00049315,120]
[407702756,1772692241208,-150.0,0.00049315,120]
[407702757,1772692241218,-500.0,0.00049315,120]
[407702758,1772692241228,-500.0,0.00049315,120]
[407702759,1772692241238,-848.0,0.00049315,2]
[407702760,1772692241247,-497.0,0.00049315,120]
[407702761,1772692241257,-150.0,0.00049315,120]
[407702762,1772692241267,-506.62439888,0.00049315,120]
[407702763,1772692241276,-504.49136797,0.00049315,120]
[407702764,1772692241286,-497.0,0.00049315,120]
[407702765,1772692241295,-150.76673535,0.00049315,120]
[407702766,1772692241305,-497.0,0.00049315,120]
[407702767,1772692241314,-497.0,0.00049315,120]
[407702768,1772692241324,-497.0,0.00049315,120]
[407702769,1772692241333,-500.0,0.00049315,120]
[407702770,1772692241342,-497.0,0.00049315,120]
[407702771,1772692241352,-500.0,0.00049315,120]
[407702772,1772692241362,-500.0,0.00049315,120]
[407702773,1772692241372,-500.0,0.00049315,87]
[407702774,1772692241382,-497.0,0.00049315,120]
[407702775,1772692241392,-848.0,0.00049315,2]
[407702776,1772692241402,-500.0,0.00049315,120]
[407702777,1772692241412,-500.0,0.00049315,120]
[407702778,1772692241421,-500.0,0.00049315,87]
[407702779,1772692241431,-497.0,0.00049315,120]
[407702780,1772692241441,-500.0,0.00049315,120]
[407702781,1772692241450,-303.47069403,0.00049315,120]
[407702782,1772692241460,-377.94610383,0.00049315,87]
[407702783,1772692241470,-243.17545178,0.00049315,120]
[407702784,1772692241480,-497.0,0.00049315,120]
[407702785,1772692241490,-500.0,0.00049315,120]
[407702786,1772692241499,-500.0,0.00049315,120]
[407702787,1772692241509,-504.95391998,0.00049315,120]
[407702788,1772692241519,-500.0,0.00049315,120]
[407702789,1772692241529,-848.0,0.00049315,2]
[407702790,1772692241539,-206.65902904,0.00049315,120]
[407702791,1772692241548,-497.0,0.00049315,120]
[407702792,1772692241558,-500.0,0.00049315,120]
[407702793,1772692241567,-500.0,0.00049315,120]
[407702794,1772692241577,-505.35409509,0.00049315,120]
[407702795,1772692241587,-497.0,0.00049315,120]